Cogmind - Beta 16.1 @@@ ROGUE MODE // 2026.03.28 @ 13:35:28 Player: the Result: Destroyed by C-57 Dissector with Dual-blade Saw Performance ------------- Evolutions (9) 4500 Regions Visited (30) 6000 Robots Destroyed (335) 1675 Value Destroyed (15506) 15506 Prototype IDs (79) 1580 Alien Tech Used (0) 0 Bonus (12776) 12776 TOTAL SCORE: 42037 Bonus ------- Triggered High Security 500 High Alert Combat Kills 2694 Follower Combat Kills 1899 Network Hubs Disabled 400 Aligned with FarCom 300 Met Data Miner 300 Met Zhirov 300 Met Warlord at Base 500 MAIN.C Attacked Warlord 500 Warlord Defense Kills 362 Built Enhanced Grunts 300 A7 Reached Mainframe 300 Met R17 at Cetus 500 Met R17 at Research 2000 Met Warlord at Research 2000 Friendly Fire -79 Cogmind --------- Core Integrity 0/1600 Matter 300/300 Energy 98/100 System Corruption 49% Temperature Cool (0) Movement Core (50) Location -1/Access Parts ------- > --- POWER (3) -------- (None) > --- PROPULSION (6) --- (None) > --- UTILITY (12) ----- (None) > --- WEAPON (4) ------- (None) > --- INVENTORY (5) ---- Heavy Shield Leg Experimental Cloaking Device Improved Focal Shield Plasma Lance Peak State ------------ > --- POWER ------------ Compact Particle Reactor Graviton Reactor Quantum Reactor > --- PROPULSION ------- Biometal Leg Biometal Leg Enhanced Biometal Leg Centrium Leg Experimental Biometal Leg Experimental Biometal Leg > --- UTILITY ---------- High-capacity Storage Unit Experimental Melee Analysis Suite Experimental Melee Analysis Suite Experimental Melee Analysis Suite Experimental Target Analyzer Microactuators Experimental Reaction Control System Experimental Cloaking Device Centrium Medium Armor Plating Graphene Brace Thermal Barrier Advanced Force Field > --- WEAPON ----------- Impact Mace Plasma Sword Centrium Greatsword > --- INVENTORY -------- Mini Fusion Reactor Vortex Chain Reactor Experimental Myomer Leg Experimental Myomer Leg Experimental Biometal Leg Experimental Biometal Leg Structural Scanner Long-range Terrain Scanner Experimental Melee Analysis Suite Experimental Melee Analysis Suite Advanced Transmission Jammer Centrium Medium Armor Plating Centrium Medium Armor Plating Advanced Force Field Centrium Greatsword Plasma Lance [Rating: 215] Favorites ----------- Power Quantum Reactor Engine Heavy Deuterium Engine Power Core Fission Core Reactor Quantum Reactor Propulsion Flexi-carbon Leg Treads Light Treads Leg Flexi-carbon Leg Wheel Compact Wheel Flight Unit Impulse Thruster Utility Experimental Melee Analysis Suite Device Microactuators Storage Large Storage Unit Processor Experimental Melee Analysis Suite Hackware Improved Hacking Suite Protection Centrium Medium Armor Plating Weapon Lance Impact Weapon Impact Mace Slashing Weapon Plasma Sword Piercing Weapon Lance Build | -11 -10 -10 -10 -9 -8 -7 -7 -7 -7 -6 -6 -6 -6 -6 -5 -5 -5 -5 -5 -5 -4 -4 -4 -4 -4 -4 -3 -3 -2 -1 ------- Run | Yrd Mat Min Exi Min Mat Fac Low Low Dat Pro Fac Low Low Zio Pro Fac Ext Cet Arc Hub Fac Was Fac Upp Upp War Pro Res Res Acc Slots Evolved 18 | . . . . . 4 2 . . . . 2 . . . . 2 . . . . 2 . . . . . . 2 2 2 Power 2 | . . . . . . 1 . . . . . . . . . . . . . . . . . . . . . . 1 . Propulsion 4 | . . . . . 2 . . . . . 1 . . . . . . . . . 1 . . . . . . . . . Utility 10 | . . . . . 2 1 . . . . 1 . . . . 1 . . . . 1 . . . . . . 2 . 2 Weapon 2 | . . . . . . . . . . . . . . . . 1 . . . . . . . . . . . . 1 . Parts Attached 272 | 2 . 2 . 5 22 12 7 9 . 9 16 1 1 6 2 19 15 9 . 13 6 2 21 2 8 18 . 20 18 27 Power 47 | . . . . 1 3 3 . 1 . . 4 . . 1 1 5 4 1 . 3 . . 4 . 2 2 . 4 3 5 Engine 8 | . . . . 1 2 3 . . . . . . . . . 1 1 . . . . . . . . . . . . . Core 19 | . . . . . 1 . . 1 . . 4 . . 1 1 4 3 . . . . . 2 . 1 1 . . . . Reactor 20 | . . . . . . . . . . . . . . . . . . 1 . 3 . . 2 . 1 1 . 4 3 5 Propulsion 101 | 2 . 2 . . 10 3 3 4 . 2 6 . 1 . . 3 5 4 . 6 . 1 11 . 2 12 . 5 8 11 Treads 9 | 2 . . . . 6 . . . . . . . . . . . . 1 . . . . . . . . . . . . Leg 75 | . . 2 . . 4 3 3 4 . 2 6 . 1 . . 2 5 3 . 6 . 1 3 . 1 12 . 5 8 4 Wheel 9 | . . . . . . . . . . . . . . . . . . . . . . . 8 . 1 . . . . . Hover . | . . . . . . . . . . . . . . . . . . . . . . . . . . . . . . . Flight 8 | . . . . . . . . . . . . . . . . 1 . . . . . . . . . . . . . 7 Utility 93 | . . . . 3 7 5 2 3 . 5 3 1 . 3 1 7 6 4 . 2 5 1 5 2 2 4 . 9 4 9 Device 38 | . . . . 2 2 2 . 2 . 2 2 1 . 2 1 2 1 . . 1 1 1 3 1 1 3 . 3 1 4 Storage 4 | . . . . . 1 . . . . 1 . . . . . 1 . . . . . . . . . . . 1 . . Processor 19 | . . . . . 2 2 . 1 . . 1 . . 1 . 1 2 . . . 2 . 1 1 . 1 . 1 1 2 Hackware 2 | . . . . . . . . . . . . . . . . 1 . . . 1 . . . . . . . . . . Protection 30 | . . . . 1 2 1 2 . . 2 . . . . . 2 3 4 . . 2 . 1 . 1 . . 4 2 3 Artifact . | . . . . . . . . . . . . . . . . . . . . . . . . . . . . . . . Weapon 31 | . . . . 1 2 1 2 1 . 2 3 . . 2 . 4 . . . 2 1 . 1 . 2 . . 2 3 2 Energy Gun . | . . . . . . . . . . . . . . . . . . . . . . . . . . . . . . . Energy Cannon . | . . . . . . . . . . . . . . . . . . . . . . . . . . . . . . . Ballistic Gun . | . . . . . . . . . . . . . . . . . . . . . . . . . . . . . . . Ballistic Cannon . | . . . . . . . . . . . . . . . . . . . . . . . . . . . . . . . Launcher . | . . . . . . . . . . . . . . . . . . . . . . . . . . . . . . . Special Weapon . | . . . . . . . . . . . . . . . . . . . . . . . . . . . . . . . Impact Weapon 9 | . . . . . 2 . . . . 1 1 . . . . 1 . . . 1 1 . . . 2 . . . . . Slashing Weapon 13 | . . . . 1 . 1 2 1 . 1 . . . 1 . . . . . . . . 1 . . . . 2 2 1 Piercing Weapon 9 | . . . . . . . . . . . 2 . . 1 . 3 . . . 1 . . . . . . . . 1 1 Special Melee Weapon . | . . . . . . . . . . . . . . . . . . . . . . . . . . . . . . . Unidentified Prototypes 27 | . . . . 1 1 1 1 . . 2 . . . . . 1 . 2 . . 1 . 2 . . 4 . 4 6 1 Corrupted Parts 4 | . . . . . . . . . . . . . . . . . . . . 4 . . . . . . . . . . System Corruption 33 | . . . . . . . . . . . . . . . . . . . . 33 . . . . . . . . . . Parts Lost 100 | . 2 . . . 1 1 10 5 . 8 9 . . . 3 6 3 1 . 3 . . 12 1 4 4 . 2 . 25 Power 13 | . . . . . . . 2 . . 1 3 . . . 1 2 . . . . . . 1 . 1 . . . . 2 Propulsion 42 | . 2 . . . . 1 3 3 . 3 3 . . . 1 1 2 1 . 3 . . 7 1 1 2 . 1 . 7 Utility 35 | . . . . . 1 . 4 1 . 2 3 . . . 1 3 1 . . . . . 3 . 2 1 . 1 . 12 Weapon 10 | . . . . . . . 1 1 . 2 . . . . . . . . . . . . 1 . . 1 . . . 4 Highest Loss Streak 17 | . 1 . . . 1 1 4 4 . 4 3 . . . 2 4 1 1 . 1 . . 8 1 2 4 . 1 . 17 To Critical Strikes 3 | . . . . . . . . . . . . . . . . . . 1 . . . . . 1 . 1 . . . . Average Backups 11 | 2 4 3 3 4 12 12 11 11 12 7 6 4 4 5 4 4 5 10 12 13 12 14 14 14 14 13 14 13 17 16 Power 1 | . 1 1 1 . 1 1 . . 1 . . 1 1 . . . 1 2 3 3 1 1 . 2 2 1 1 2 2 1 Propulsion 1 | 1 2 . . . 2 . . . . . . . . . . . . 1 2 1 . . . . . 1 2 2 3 4 Utility 6 | . 1 2 2 3 6 7 7 8 9 5 4 1 1 2 2 2 3 5 6 6 8 11 10 10 9 8 10 7 9 8 Weapon 1 | . . . . . 1 2 2 2 2 . . 2 2 2 2 1 1 1 1 1 2 2 2 2 2 2 1 1 2 1 Tool/Special . | . . . . . . . . . . . . . . . . . . . . . . . . . . . . . . . Unused Backups 44 | . . . . 1 5 6 1 . . 3 1 . . 1 . 3 . . . 1 3 . 1 . 1 5 . 2 2 8 Power 4 | . . . . . 1 . . . . . . . . . . . . . . . 1 . . . . 2 . . . . Propulsion 8 | . . . . . . 1 . . . . . . . . . . . . . 1 . . 1 . . . . . . 5 Utility 25 | . . . . 1 4 4 1 . . 3 1 . . . . 1 . . . . 2 . . . 1 2 . 2 . 3 Weapon 7 | . . . . . . 1 . . . . . . . 1 . 2 . . . . . . . . . 1 . . 2 . Tool/Special . | . . . . . . . . . . . . . . . . . . . . . . . . . . . . . . . Average Slot Usage (%) 90 | . 24 21 28 53 96 86 86 82 84 51 84 100 100 100 95 88 93 95 100 97 99 100 96 99 94 93 94 97 95 92 Engine 1 | . . . . 5 6 12 11 1 . . 3 . . . . 1 2 . . . . . . . . . . . . . Core 4 | . . . . . 2 . . 5 7 2 5 13 13 13 13 9 8 9 5 5 . . 1 5 8 5 5 1 . . Reactor 3 | . . . . . . . . . . . . . . . . . . 1 5 5 10 10 7 5 1 4 5 6 12 11 Treads 1 | . 24 . . . 11 . . . . . . . . . . . . . . . . . . . . . . . . . Leg 23 | . . 21 28 28 23 27 29 28 30 9 27 33 33 33 29 23 28 27 29 27 31 31 12 4 4 12 31 27 25 23 Wheel 3 | . . . . . . . . . . . . . . . . . . . . . . . 16 26 24 18 . . . . Device 12 | . . . . 6 11 14 14 12 7 6 10 20 20 20 19 18 10 5 5 4 9 10 8 5 5 3 5 19 20 22 Storage 4 | . . . . . 8 7 7 7 7 7 4 . . . . . 1 5 5 5 5 5 5 5 5 5 5 4 4 3 Processor 13 | . . . . . 7 14 8 8 15 15 15 20 20 20 20 7 10 11 11 11 11 10 10 14 15 18 21 16 13 15 Hackware 2 | . . . . . . . . . . . . . . . . 3 5 5 5 10 10 10 10 10 8 4 . . . . Protection 4 | . . . . . 8 . 5 7 7 1 5 . . . . 3 5 7 11 5 4 5 6 5 4 5 5 3 4 3 Impact Weapon 3 | . . . . . 8 . . . . 1 6 . . . . . 4 5 5 4 2 5 1 . 6 10 10 7 4 3 Slashing Weapon 4 | . . . . 12 8 7 7 7 7 5 . . . 3 6 4 . . . . 2 . 5 5 . 3 . 3 9 7 Piercing Weapon 4 | . . . . . . . . . . . 3 12 13 9 6 11 11 11 11 11 10 10 8 10 8 1 5 2 . . Peak Build Rating 215 | 2 2 2 2 14 38 54 54 48 39 50 75 74 74 77 77 91 93 104 104 104 109 114 117 114 109 126 125 152 202 215 Average Rating 95 | 1 1 1 2 7 31 48 49 42 39 24 62 74 73 75 74 81 86 95 104 94 101 112 101 112 105 112 124 140 189 199 On Entrance 73 | . 2 . 2 2 9 38 54 48 39 39 46 71 74 74 77 74 86 90 104 104 90 105 114 111 106 108 126 125 151 199 Avg Prop Armor Cover (%) 14 | 41 39 38 38 35 7 . . . . . 12 . . . . 6 . . . . . . 4 4 4 3 . . . 20 Naked Turns 110 | . 1 60 . . . . . . . . . . . . . . . . . . . . . . . . . . . 49 Heaviest Build 140 | . . . . 7 53 61 61 47 34 44 52 37 36 38 38 57 70 79 79 79 80 75 81 80 81 102 89 100 126 140 Greatest Support 176 | 20 3 3 3 20 82 68 66 65 45 66 106 89 94 94 94 89 118 118 108 108 105 115 123 80 80 140 140 151 172 176 Greatest Overweight (x) 13 | . . . . . . . 1 1 . 8 1 . . . . . . . . 1 . . 13 . 1 1 . . . 1 Average Overweight (x) . | . . . . . . . . . . 1 . . . . . . . . . . . . . . . . . . . . Largest Inventory Capacity 20 | 5 5 5 5 5 15 15 15 15 15 15 15 5 5 5 5 15 15 15 15 15 15 15 15 15 15 15 15 20 20 20 Average Capacity 13 | 5 5 5 5 5 14 15 15 15 15 15 11 5 5 5 5 5 7 15 15 15 15 15 15 15 15 15 15 15 20 19 Most Carried 20 | 4 5 5 4 5 15 15 15 14 12 12 9 4 5 5 5 5 11 15 15 15 15 15 15 15 15 15 15 17 20 20 Average Carried 11 | 2 4 3 3 4 12 14 13 11 12 7 6 4 4 4 4 4 5 13 15 14 13 15 14 14 14 13 15 14 19 17 Final Capacity 20 | 5 5 5 5 5 15 15 15 15 15 15 5 5 5 5 5 5 15 15 15 15 15 15 15 15 15 15 15 20 20 5 Final Carried 20 | 4 5 3 4 4 15 15 14 12 12 7 5 4 5 5 5 5 9 15 15 13 15 15 14 15 15 15 15 17 20 5 Class Distribution -------------------- 45% | Scavenger-Gladiator 29% | Gladiator 5% | Mutant 5% | Scavenger-Mutant 4% | Hacker-Gladiator 3% | Commander-Gladiator 3% | Scavenger-Assassin Dominant Class ---------------- Mutant | -10/Materials Mutant | -10/Mines Mutant | -10/Exiles Mutant | -9/Mines Gladiator | -8/Materials Gladiator | -7/Factory Gladiator | -7/Lower Caves Scavenger-Gladiator | -7/Lower Caves Scavenger-Gladiator | -7/Data Miner Scavenger-Mutant | -6/Proximity Caves Scavenger-Mutant | -6/Factory Gladiator | -6/Lower Caves Gladiator | -6/Lower Caves Gladiator | -6/Zion Gladiator | -5/Proximity Caves Gladiator | -5/Factory Scavenger-Gladiator | -5/Extension Scavenger-Gladiator | -5/Cetus Scavenger-Gladiator | -5/Archives Scavenger-Gladiator | -5/Hub_04(d) Scavenger-Gladiator | -4/Factory Scavenger-Gladiator | -4/Waste Scavenger-Gladiator | -4/Factory Hacker-Gladiator | -4/Upper Caves Hacker-Gladiator | -4/Upper Caves Commander-Gladiator | -4/Warlord Scavenger-Gladiator | -3/Proximity Caves Scavenger-Gladiator | -3/Research Scavenger-Gladiator | -2/Research Scavenger-Gladiator | -1/Access Resources | -11 -10 -10 -10 -9 -8 -7 -7 -7 -7 -6 -6 -6 -6 -6 -5 -5 -5 -5 -5 -5 -4 -4 -4 -4 -4 -4 -3 -3 -2 -1 ----------- Run | Yrd Mat Min Exi Min Mat Fac Low Low Dat Pro Fac Low Low Zio Pro Fac Ext Cet Arc Hub Fac Was Fac Upp Upp War Pro Res Res Acc Matter Collected 4907 | 219 . 15 . 50 310 185 120 85 . 153 191 20 35 91 52 267 190 160 . 219 24 . 690 44 194 271 50 295 316 661 Remotely . | . . . . . . . . . . . . . . . . . . . . . . . . . . . . . . . Salvage Created 18799 | . . . . 271 1354 370 688 424 . 217 938 87 46 . 105 1140 779 . . 1575 72 . 1938 84 954 206 261 473 1000 5817 Parts 817 | . . . . 26 68 25 32 15 . 7 45 3 . . 3 52 34 . . 51 8 . 82 4 16 1 6 12 24 303 Haulers Intercepted 17 | . . . . . 3 1 1 . . . . . . . . 2 . . . 5 . . 3 . . . . . 2 . Recyclers Shooed 3 | . . . . . . 1 . . . . . . . . . . 1 . . . . . 1 . . . . . . . Parts Field Recycled . | . . . . . . . . . . . . . . . . . . . . . . . . . . . . . . . Retrieved Matter . | . . . . . . . . . . . . . . . . . . . . . . . . . . . . . . . Parts Self-Destructed 69 | . . . . . . . 33 10 . 8 . . 5 . 3 . . . . . . . . . 8 . 2 . . . Prevented 13 | . . . . . . . . . . . . . . . . . . . . . . . . . 9 . 4 . . . Parts Restored . | . . . . . . . . . . . . . . . . . . . . . . . . . . . . . . . Kills | -11 -10 -10 -10 -9 -8 -7 -7 -7 -7 -6 -6 -6 -6 -6 -5 -5 -5 -5 -5 -5 -4 -4 -4 -4 -4 -4 -3 -3 -2 -1 ------- Run | Yrd Mat Min Exi Min Mat Fac Low Low Dat Pro Fac Low Low Zio Pro Fac Ext Cet Arc Hub Fac Was Fac Upp Upp War Pro Res Res Acc Combat Hostiles Destroyed 245 | . . . . . 21 8 14 7 . 7 12 . 3 . 2 12 12 . . 14 . . 16 1 10 3 4 7 9 83 Melee 214 | . . . . . 18 8 14 7 . 7 10 . 3 . 2 12 7 . . 8 . . 16 1 4 1 3 5 8 80 AOE 1 | . . . . . 1 . . . . . . . . . . . . . . . . . . . . . . . . . Classes Destroyed 22 | . . . . 4 7 2 . . . . 1 . 1 . . 1 1 . . . . . . 1 . 1 . 1 . 2 Worker 21 | . . . . 3 6 . . . . . 2 . . . . . . . . 5 . . 1 . . . . 1 1 2 Builder 11 | . . . . 2 1 1 . . . . 1 . . . . . . . . . 1 . 2 . . . . . . 3 Tunneler 10 | . . . . 3 . 1 . . . . 2 . . . . . . . . . 1 . 2 . . . . . . 1 Hauler 17 | . . . . . 3 1 1 . . . . . . . . 2 . . . 5 . . 3 . . . . . 2 . Recycler 13 | . . . . 2 . . . . . . 1 . . . . 2 1 . . 1 . . 3 . . . . . 1 2 Mechanic 2 | . . . . . 1 . . . . . . . . . . . . . . . . . 1 . . . . . . . Operator 3 | . . . . . 1 . . . . . 1 . . . . 1 . . . . . . . . . . . . . . Watcher 15 | . . . . . 2 . . . . . 2 . . . . 2 1 . . 2 1 . 2 . . . . . . 3 Swarmer 53 | . . . . . 4 2 7 . . 5 1 . . . . 4 5 . . . . . 1 . . . . 1 . 23 Saboteur 1 | . . . . . . . . . . . . . . . . . . . . . . . . . . . . . . 1 Grunt 78 | . . . . . 11 3 4 7 . . . . . . . . 1 . . 10 . . 4 . 5 1 4 2 2 24 Brawler 3 | . . . . . . . . . . . . . . . . . . . . . . . . . . . . . . 3 Duelist 6 | . . . . . . . . . . . 1 . . . . . . . . . . . . . 3 1 . . 1 . Protector 2 | . . . . . . . . . . . . . . . . . . . . . . . . . . 1 . . . 1 Sentry 30 | . . . . . 6 . 2 . . 1 5 . . . . . 5 . . 1 . . 3 . 1 . . 1 1 4 Specialist 2 | . . . . . . . . . . . . . . . . 2 . . . . . . . . . . . . . . Hunter 13 | . . . . . . 1 1 . . 1 . . . . . . . . . 1 . . 2 . 2 . . 2 3 . Programmer 50 | . . . . . . 2 . . . . 5 . . . 2 6 . . . 2 . . 6 . . . . . . 27 Behemoth 1 | . . . . . . . . . . . . . . . . . 1 . . . . . . . . . . . . . Striker 3 | . . . . . . . . . . . . . . . . . . . . . . . . . . . . 1 2 . Decomposer 1 | . . . . . . . . . . . . 1 . . . . . . . . . . . . . . . . . . Assembled 3 | . . . . . . . . . . . . . 3 . . . . . . . . . . . . . . . . . Mutant 1 | . . . . . . . . . . . . . . . . . . . . . . . . 1 . . . . . . Best Kill Streak 8 | . . . . 8 5 5 5 4 . 3 3 . 2 . 2 4 2 . . 6 1 . 4 1 8 1 3 2 2 8 Combat Bots Only 8 | . . . . . 5 3 5 4 . 3 3 . 2 . 2 4 2 . . 3 . . 4 1 8 1 3 2 2 6 Max Kills in Single Turn 2 | . . . . 1 1 1 1 1 . 1 1 1 1 . 1 1 1 . . 1 1 . 2 1 1 1 1 1 1 2 Gunslinging . | . . . . . . . . . . . . . . . . . . . . . . . . . . . . . . . Exploded 1 | . . . . . 1 . . . . . . . . . . . . . . . . . . . . . . . . . Melee 2 | . . . . . 1 1 1 1 . 1 1 . 1 . 1 1 1 . . 1 . . 2 1 1 1 1 1 1 2 Uniques/NPCs Destroyed . | . . . . . . . . . . . . . . . . . . . . . . . . . . . . . . . Combat | -11 -10 -10 -10 -9 -8 -7 -7 -7 -7 -6 -6 -6 -6 -6 -5 -5 -5 -5 -5 -5 -4 -4 -4 -4 -4 -4 -3 -3 -2 -1 -------- Run | Yrd Mat Min Exi Min Mat Fac Low Low Dat Pro Fac Low Low Zio Pro Fac Ext Cet Arc Hub Fac Was Fac Upp Upp War Pro Res Res Acc Hostile Shots Fired 2274 | . 85 . . . 101 34 156 33 . 106 279 . 9 . 86 77 95 12 . 72 . . 205 13 33 117 20 25 80 636 Missed 758 | . 38 . . . 22 9 42 2 . 25 99 . 5 . 27 25 42 4 . 26 . . 59 5 9 44 7 12 30 226 Hits 1516 | . 47 . . . 79 25 114 31 . 81 180 . 4 . 59 52 53 8 . 46 . . 146 8 24 73 13 13 50 410 Melee 46 | . . . . . . . . . . . . . . . . . . . . . . . . . 2 4 . 2 4 34 Projectile 1470 | . 47 . . . 79 25 114 31 . 81 180 . 4 . 59 52 53 8 . 46 . . 146 8 22 69 13 11 46 376 AOE 12 | . . 2 . . 1 2 . . . . . . . . . . . . . 1 . . . . . . . . 5 1 Critical Strikes 81 | . 1 . . . . . 5 1 . . 7 . . . 3 3 . 3 . 5 . . 10 1 2 6 1 . 3 30 Actively Blocked 16 | . . . . . . . . . . . . . . . . . . . . . . . 1 . . . . . 3 12 Part Disruptions 8 | . . . . . . . . . . . . . . . 1 . . . . . . . . . . . . . . 7 Damage Taken 24775 | . 425 75 . . 939 592 1632 498 . 1019 1961 . 17 . 620 974 1022 328 . 1190 . . 2658 123 537 1652 250 375 845 7043 Core 4177 | . 139 71 . . 77 122 133 86 . 317 308 . 5 . 109 88 75 28 . 143 . . 405 13 106 214 18 26 64 1630 Absorbed by Shields 4258 | . . . . . . . . . . . 19 . 20 . 186 . 34 64 . . . . 216 . . 334 . 149 866 2370 Redirected to Shielding 217 | . . . . . . . . 8 . 3 . . . . . . . . . . . . 81 . . . . . . 125 Ignored by Resistances 1647 | . . . . . 102 . . . . . . . . . . . . . . . . . . . . . . . 211 1334 Regen/Repaired (Parts) 726 | . . . . . 119 . . . . . . . . 22 . . . . . . 35 . . . . 494 . . 56 . Core Remaining (%) 61 | 100 . . . 16 86 . . . . 6 . . . . 50 . . . . 66 . . . . . . 34 98 95 . Volleys Fired . | . . . . . . . . . . . . . . . . . . . . . . . . . . . . . . . Largest . | . . . . . . . . . . . . . . . . . . . . . . . . . . . . . . . Hottest . | . . . . . . . . . . . . . . . . . . . . . . . . . . . . . . . Shots Fired . | . . . . . . . . . . . . . . . . . . . . . . . . . . . . . . . Gun . | . . . . . . . . . . . . . . . . . . . . . . . . . . . . . . . Cannon . | . . . . . . . . . . . . . . . . . . . . . . . . . . . . . . . Launcher . | . . . . . . . . . . . . . . . . . . . . . . . . . . . . . . . Special . | . . . . . . . . . . . . . . . . . . . . . . . . . . . . . . . Kinetic . | . . . . . . . . . . . . . . . . . . . . . . . . . . . . . . . Thermal . | . . . . . . . . . . . . . . . . . . . . . . . . . . . . . . . Explosive . | . . . . . . . . . . . . . . . . . . . . . . . . . . . . . . . Electromagnetic . | . . . . . . . . . . . . . . . . . . . . . . . . . . . . . . . Robot Hit Streak . | . . . . . . . . . . . . . . . . . . . . . . . . . . . . . . . Robot Miss Streak . | . . . . . . . . . . . . . . . . . . . . . . . . . . . . . . . Penetration Max . | . . . . . . . . . . . . . . . . . . . . . . . . . . . . . . . Secondary Targets . | . . . . . . . . . . . . . . . . . . . . . . . . . . . . . . . Shots Hit Robots 825 | . . . . 12 51 20 41 19 . 12 62 2 4 . 13 44 36 8 . 54 7 . 92 3 31 13 8 20 45 228 Core Hits 310 | . 1 . . 7 28 7 16 8 . 6 17 1 3 . 2 20 9 4 . 19 4 . 36 2 8 3 4 6 13 86 Critical Kills 3 | . . . . . 1 . . . . . . . . . . . . . . . . . . . 1 . . . . 1 Critical Parts Destroyed 45 | . . . . . 1 . . . . 1 5 . . . . . 5 . . 6 . . 1 . 6 3 3 3 1 10 Critical Strikes 149 | . . . . . 4 1 13 3 . 1 12 . . . 2 5 6 1 . 8 1 . 11 1 8 3 4 6 12 47 Smash 50 | . . . . . 2 . . . . 1 6 . . . . . 5 . . 6 . . 1 . 7 3 3 3 1 12 Sever 85 | . . . . . 2 1 13 3 . . . . . . 2 5 . . . 1 . . 8 . 1 . . 3 11 35 Impale 14 | . . . . . . . . . . . 6 . . . . . 1 1 . 1 1 . 2 1 . . 1 . . . Melee Attacks 1338 | . . . . 12 111 42 51 24 . 16 117 2 8 1 18 107 42 8 . 73 25 5 145 14 37 17 13 50 57 343 Impact 245 | . . . . . 17 . . . . 3 65 . . . . . 13 . . 27 8 2 6 . 19 8 10 16 9 42 Slashing 793 | . . . . 12 94 42 51 24 . 13 . . . 1 16 77 1 . . 14 9 . 63 3 4 5 . 21 48 295 Piercing 300 | . . . . . . . . . . . 52 2 8 . 2 30 28 8 . 32 8 3 76 11 14 4 3 13 . 6 Sneak Attacks 124 | . . . . 11 21 5 3 . . 1 12 1 1 . . 5 5 . . 16 2 . 15 . 8 . . 1 3 14 Combat Hostiles 22 | . . . . . 7 . 2 . . . . . 1 . . 1 3 . . 2 . . . . . . . . . 6 Follow-up Attacks 156 | . . . . . 7 . . . . . 8 . . . 1 10 7 1 . 10 2 . 28 . 6 3 2 5 11 55 Damage Inflicted 50066 | . 23 9 . 857 2741 1446 2367 1001 . 590 2689 131 199 . 548 2089 1755 289 . 3226 409 . 4620 128 1977 721 412 1165 2823 17851 Guns . | . . . . . . . . . . . . . . . . . . . . . . . . . . . . . . . Cannons . | . . . . . . . . . . . . . . . . . . . . . . . . . . . . . . . Explosions . | . . . . . . . . . . . . . . . . . . . . . . . . . . . . . . . Melee 50034 | . . . . 857 2741 1446 2367 1001 . 590 2689 131 199 . 548 2089 1755 289 . 3226 409 . 4620 128 1977 721 412 1165 2823 17851 Ramming 32 | . 23 9 . . . . . . . . . . . . . . . . . . . . . . . . . . . . Kinetic . | . . . . . . . . . . . . . . . . . . . . . . . . . . . . . . . Thermal . | . . . . . . . . . . . . . . . . . . . . . . . . . . . . . . . Explosive . | . . . . . . . . . . . . . . . . . . . . . . . . . . . . . . . Electromagnetic . | . . . . . . . . . . . . . . . . . . . . . . . . . . . . . . . Impact 8341 | . . . . . 217 . . . . 225 1098 . . . . . 703 . . 1705 85 . 226 . 996 525 328 555 344 1334 Slashing 33606 | . . . . 857 2524 1446 2367 1001 . 365 . . . . 513 1763 73 . . 402 248 . 2392 . 272 44 . 515 2479 16345 Piercing 8087 | . . . . . . . . . . . 1591 131 199 . 35 326 979 289 . 1119 76 . 2002 128 709 152 84 95 . 172 Highest Corruption 49 | . . . . . . 2 2 2 2 2 4 4 4 4 7 3 . . . 35 2 18 20 20 20 20 . . 1 49 Average Corruption 8 | . . . . . . 2 2 2 2 2 2 4 4 4 6 1 . . . 11 2 10 19 20 20 20 . . 1 12 Corruption Purged 12 | . . . . . . . . . . . . . . . . 5 . . . . . . . . . . . . . 7 Corruption Blocked . | . . . . . . . . . . . . . . . . . . . . . . . . . . . . . . . Effects 367 | . . . . . . 4 10 5 1 20 23 5 16 . 9 . . . . 35 9 5 71 14 31 1 . . 5 103 Message Errors 94 | . . . . . . 1 4 2 1 6 5 2 3 . . . . . . 13 1 1 20 2 7 . . . . 26 Matter Fused 80 | . . . . . . . 3 . . 3 6 . 6 . 4 . . . . 6 4 3 14 2 7 1 . . 2 19 Heat Flow Errors 44 | . . . . . . . 1 1 . 2 4 . 1 . 2 . . . . 3 2 . 5 . 7 . . . 1 15 Energy Discharges 46 | . . . . . . 2 . 1 . 4 2 . 3 . 1 . . . . 3 1 1 12 3 5 . . . . 8 Parts Rejected 5 | . . . . . . . . . . . 1 . . . . . . . . . . . . . . . . . . 4 Parts Fused 5 | . . . . . . . 2 . . . . . . . . . . . . . . . . . 1 . . . . 2 Data Loss (minor) 54 | . . . . . . 1 . 1 . 2 4 3 2 . . . . . . 8 1 . 10 4 1 . . . 1 16 Data Loss (major) 16 | . . . . . . . . . . 1 . . 1 . . . . . . . . . 4 2 2 . . . 1 5 Alerts 13 | . . . . . . . . . . 2 1 . . . 2 . . . . 1 . . 4 1 . . . . . 2 Misdirections 10 | . . . . . . . . . . . . . . . . . . . . 1 . . 2 . 1 . . . . 6 Overload Shots . | . . . . . . . . . . . . . . . . . . . . . . . . . . . . . . . Overflow Damage 8981 | . . . . 153 353 439 36 116 . 145 750 66 . . 50 162 506 . . 1042 103 . 492 . 688 234 153 388 176 2929 Projectiles . | . . . . . . . . . . . . . . . . . . . . . . . . . . . . . . . Explosions . | . . . . . . . . . . . . . . . . . . . . . . . . . . . . . . . Melee 8981 | . . . . 153 353 439 36 116 . 145 750 66 . . 50 162 506 . . 1042 103 . 492 . 688 234 153 388 176 2929 Knockbacks 26 | . . . . . . . . . . 1 1 . . . . . 2 . . 4 1 . 1 . 3 4 . 2 2 5 Impact 23 | . . . . . . . . . . 1 1 . . . . . 2 . . 4 1 . 1 . 3 3 . 2 1 4 Kinetic . | . . . . . . . . . . . . . . . . . . . . . . . . . . . . . . . Secondary 3 | . . . . . . . . . . . . . . . . . . . . . . . . . . 1 . . 1 1 Self-Inflicted Damage 14 | . 10 4 . . . . . . . . . . . . . . . . . . . . . . . . . . . . Shots . | . . . . . . . . . . . . . . . . . . . . . . . . . . . . . . . Rammed 7 | . 6 1 . . . . . . . . . . . . . . . . . . . . . . . . . . . . Targets Rammed 7 | . 6 1 . . . . . . . . . . . . . . . . . . . . . . . . . . . . Kicked . | . . . . . . . . . . . . . . . . . . . . . . . . . . . . . . . Crushed . | . . . . . . . . . . . . . . . . . . . . . . . . . . . . . . . Highest Temperature 266 | . . . . . 8 2 105 258 . 163 211 . 137 . 169 . 13 . . 237 225 . 210 9 266 10 4 . 253 237 Average Temperature 92 | . . . . . 4 2 55 127 . 77 104 . 71 . 82 . 6 . . 87 101 . 84 9 113 4 4 . 110 95 Received Heat Transfer 3352 | . 45 . . . 201 105 498 297 . 63 252 . . . 12 . 155 36 . 273 . . 382 49 73 163 39 8 49 652 Effects 3 | . . . . . . . . . . . . . . . . . . . . . . . . . . . . . 3 . Interference 3 | . . . . . . . . . . . . . . . . . . . . . . . . . . . . . 3 . Siege Activations . | . . . . . . . . . . . . . . . . . . . . . . . . . . . . . . . Martial Activations . | . . . . . . . . . . . . . . . . . . . . . . . . . . . . . . . Shielding Activations . | . . . . . . . . . . . . . . . . . . . . . . . . . . . . . . . Robots Disrupted . | . . . . . . . . . . . . . . . . . . . . . . . . . . . . . . . Combat Hostiles . | . . . . . . . . . . . . . . . . . . . . . . . . . . . . . . . Robots Corrupted 33 | . . . . . 3 . . . . . 2 . . . . . 5 . . 6 . . 1 . 6 2 1 2 2 3 Combat Hostiles 29 | . . . . . 2 . . . . . 2 . . . . . 5 . . 6 . . . . 5 2 1 2 1 3 Parts Fried 64 | . . . . . 2 . . . . 2 7 . . . . . 4 . . 14 . . . . 13 4 10 2 1 5 Impact Corruptions 96 | . . . . . 4 . . . . 1 14 . . . . . 9 . . 19 1 . 1 . 13 6 4 5 2 17 Robots Melted . | . . . . . . . . . . . . . . . . . . . . . . . . . . . . . . . Combat Hostiles . | . . . . . . . . . . . . . . . . . . . . . . . . . . . . . . . Parts Melted . | . . . . . . . . . . . . . . . . . . . . . . . . . . . . . . . Heat Transferred . | . . . . . . . . . . . . . . . . . . . . . . . . . . . . . . . Parts Sabotaged 2 | . . . . . . . . . . . . . . . . . . . . . . . . . . . . . . 2 Parts Stolen . | . . . . . . . . . . . . . . . . . . . . . . . . . . . . . . . Parts Stripped . | . . . . . . . . . . . . . . . . . . . . . . . . . . . . . . . Power Chain Reactions . | . . . . . . . . . . . . . . . . . . . . . . . . . . . . . . . Alert | -11 -10 -10 -10 -9 -8 -7 -7 -7 -7 -6 -6 -6 -6 -6 -5 -5 -5 -5 -5 -5 -4 -4 -4 -4 -4 -4 -3 -3 -2 -1 ------- Run | Yrd Mat Min Exi Min Mat Fac Low Low Dat Pro Fac Low Low Zio Pro Fac Ext Cet Arc Hub Fac Was Fac Upp Upp War Pro Res Res Acc Maximum Alert Level 5 | . . . . . 1 . . . . . 1 . . . . . 2 1 . 2 1 . . . . . . . . 5 Low Security (%) 67 | 100 100 100 . 100 42 100 . . . . 98 . . . . 100 44 93 100 4 72 100 100 . . . . 100 100 19 Level 1 14 | . . . . . 57 . . . . . 1 . . . . . 34 6 . 10 27 . . . . . . . . 18 Level 2 9 | . . . . . . . . . . . . . . . . . 21 . . 84 . . . . . . . . . 13 Level 3 1 | . . . . . . . . . . . . . . . . . . . . . . . . . . . . . . 9 Level 4 3 | . . . . . . . . . . . . . . . . . . . . . . . . . . . . . . 18 Level 5 1 | . . . . . . . . . . . . . . . . . . . . . . . . . . . . . . 5 High Security 2 | . . . . . . . . . . . . . . . . . . . . . . . . . . . . . . 14 Max Security . | . . . . . . . . . . . . . . . . . . . . . . . . . . . . . . . Peak Influence 2022 | . 155 56 . 15 276 116 . . . . 325 . . . . 162 491 216 63 579 267 7 175 . . . . 68 77 2022 Initial 267 | . . 56 . . . 116 . . . . 32 . . . . . 76 216 43 18 267 7 . . . . . . 38 31 Average 241 | . 32 13 . 2 159 26 . . . . 60 . . . . 89 263 142 46 455 143 1 68 . . . . 8 19 833 Influence Increases 11212 | . 195 30 . 50 789 242 595 165 . 261 720 45 . . 65 631 1062 340 40 1089 71 4 655 . 290 330 135 252 331 2825 Destroy 0b10 Robot/C 5560 | . . . . . 420 160 280 140 . 160 240 . . . 40 240 480 160 20 500 . . 320 . 200 160 80 140 180 1640 Destroy 0b10 Robot/NC 520 | . . . . 50 70 15 5 . . . 45 . . . . 35 35 10 . 75 15 . 70 . 5 5 . 5 20 60 Destroy Leader 1018 | . . . . . 120 32 40 10 . 20 114 . . . 10 58 44 . . 108 2 . 90 . 10 . 10 30 44 276 Allied During Kill 815 | . . . . . 2 . . . . 21 . . . . . . 369 170 20 188 . . . . . 45 . . . . Successful Hack 248 | . . . . . 18 5 . . . . 34 . . . . 73 10 . . 16 13 . 55 . . . . 24 . . Disable Machine 195 | . . . . . 45 15 . . . . . . . . . 30 15 . . 45 15 . . . . . . . . 30 Anti-Garrison Action 150 | . . . . . . . . . . . 150 . . . . . . . . . . . . . . . . . . . Destroy Structure 471 | . . . . . 24 15 . . . . 32 . . . . 60 4 . . 52 26 4 60 . . . . 38 12 144 Partial Spotted 30 | . . . . . . . . . . . 15 . . . . . . . . 15 . . . . . . . . . . Lose Combat Pursuer 2205 | . 195 30 . . 90 . 270 15 . 60 90 45 . . 15 135 105 . . 90 . . 60 . 75 120 45 15 75 675 Influence Decreases 9190 | . 50 175 . 50 532 444 463 296 56 208 458 227 133 . 65 475 832 618 95 595 598 24 499 156 275 196 284 184 346 856 Entered New Map 1424 | . . 89 . . . 141 21 36 56 . 21 117 26 . . . 80 170 65 35 280 13 . 58 . 15 149 . 30 22 Time Decay 6180 | . 30 60 . 50 492 303 342 210 . 138 347 110 107 . 45 405 452 198 30 470 318 11 389 98 255 111 135 174 316 584 Lost Part 880 | . 20 . . . 10 . 100 50 . 50 90 . . . 20 60 30 10 . 30 . . 100 . 20 30 . 10 . 250 Lost Ally 556 | . . 26 . . 30 . . . . 20 . . . . . 10 120 240 . 60 . . 10 . . 40 . . . . Purge Threat 150 | . . . . . . . . . . . . . . . . . 150 . . . . . . . . . . . . . Squads Dispatched 91 | . 2 . . . 6 4 . . . . 11 . . . . 8 . . . 9 2 . 5 . 1 . . 6 2 35 Investigation 7 | . 1 . . . 1 . . . . . 1 . . . . . . . . 1 . . . . . . . 2 1 . Extermination 25 | . . . . . . 3 . . . . 4 . . . . 3 . . . 1 2 . 3 . . . . . . 9 Reinforcement 31 | . 1 . . . 4 1 . . . . 4 . . . . 2 . . . 5 . . 2 . . . . 4 1 7 Assault 24 | . . . . . . . . . . . 2 . . . . . . . . 2 . . . . 1 . . . . 19 Garrison 4 | . . . . . 1 . . . . . . . . . . 3 . . . . . . . . . . . . . . Intercept . | . . . . . . . . . . . . . . . . . . . . . . . . . . . . . . . Searches Triggered . | . . . . . . . . . . . . . . . . . . . . . . . . . . . . . . . Data Miner Redirects 3 | . . . . . . . . . . . . . . . . . . . . 1 . . . . . . . . . 2 Construction Impeded . | . . . . . . . . . . . . . . . . . . . . . . . . . . . . . . . Haulers Reinforced 4 | . . . . . . 1 . . . . . . . . . . . . . 2 . . . . . . . . 1 . Active Scanning Responses . | . . . . . . . . . . . . . . . . . . . . . . . . . . . . . . . Cargo Convoy Interrupts . | . . . . . . . . . . . . . . . . . . . . . . . . . . . . . . . Stealth | -11 -10 -10 -10 -9 -8 -7 -7 -7 -7 -6 -6 -6 -6 -6 -5 -5 -5 -5 -5 -5 -4 -4 -4 -4 -4 -4 -3 -3 -2 -1 --------- Run | Yrd Mat Min Exi Min Mat Fac Low Low Dat Pro Fac Low Low Zio Pro Fac Ext Cet Arc Hub Fac Was Fac Upp Upp War Pro Res Res Acc Distress Signals 36 | . 2 . . . 1 . . . . . . . . . . 1 1 2 1 5 . . 1 . . 2 . 6 8 6 Communications Jammed 105 | . . . . . . . . . . . . . . . . 5 54 . . . . . . . . . . . . 46 Distress Signals 104 | . . . . . . . . . . . . . . . . 5 54 . . . . . . . . . . . . 45 Times Spotted 637 | . 19 2 . . 30 9 31 8 . 9 31 1 3 . 3 23 31 12 . 30 4 4 28 5 12 124 7 19 33 159 Peak Tracking Total 29 | . 12 2 . . 5 3 5 4 . 4 5 3 1 . 3 7 7 5 . 6 4 5 7 4 7 29 4 5 8 19 Tactical Retreats 81 | . 4 1 . . 5 . 13 1 . 2 3 1 . . 1 5 4 . . 4 . . 4 . 2 3 3 1 4 20 Traps | -11 -10 -10 -10 -9 -8 -7 -7 -7 -7 -6 -6 -6 -6 -6 -5 -5 -5 -5 -5 -5 -4 -4 -4 -4 -4 -4 -3 -3 -2 -1 ------- Run | Yrd Mat Min Exi Min Mat Fac Low Low Dat Pro Fac Low Low Zio Pro Fac Ext Cet Arc Hub Fac Was Fac Upp Upp War Pro Res Res Acc Traps Triggered 21 | . . . . . 1 . . . . . 2 . . . . 3 3 . . 1 4 . 2 . . . . 2 . 3 Indirectly . | . . . . . . . . . . . . . . . . . . . . . . . . . . . . . . . Trap Hack Attempts . | . . . . . . . . . . . . . . . . . . . . . . . . . . . . . . . Triggered . | . . . . . . . . . . . . . . . . . . . . . . . . . . . . . . . Disarmed . | . . . . . . . . . . . . . . . . . . . . . . . . . . . . . . . Reprogrammed . | . . . . . . . . . . . . . . . . . . . . . . . . . . . . . . . Reused . | . . . . . . . . . . . . . . . . . . . . . . . . . . . . . . . Traps Extracted . | . . . . . . . . . . . . . . . . . . . . . . . . . . . . . . . Installed . | . . . . . . . . . . . . . . . . . . . . . . . . . . . . . . . Triggered . | . . . . . . . . . . . . . . . . . . . . . . . . . . . . . . . Machines | -11 -10 -10 -10 -9 -8 -7 -7 -7 -7 -6 -6 -6 -6 -6 -5 -5 -5 -5 -5 -5 -4 -4 -4 -4 -4 -4 -3 -3 -2 -1 ---------- Run | Yrd Mat Min Exi Min Mat Fac Low Low Dat Pro Fac Low Low Zio Pro Fac Ext Cet Arc Hub Fac Was Fac Upp Upp War Pro Res Res Acc Machines Disabled 16 | . . . . . 3 1 . . . . 1 . . . . 2 2 . . 3 1 . . 1 . . . . . 2 Max in Single Turn 1 | . . . . . 1 1 . . . . 1 . . . . 1 . . . 1 1 . . 1 . . . . . 1 Garrison Access 8 | . . . . . . 1 . . . . 1 . . . . . . . . . . . 2 . . . . 1 2 1 Network Hub 2 | . . . . . . . . . . . . . . . . . . . . 2 . . . . . . . . . . Machines Repaired . | . . . . . . . . . . . . . . . . . . . . . . . . . . . . . . . Machines Dismantled . | . . . . . . . . . . . . . . . . . . . . . . . . . . . . . . . Machines Sabotaged . | . . . . . . . . . . . . . . . . . . . . . . . . . . . . . . . Overloaded Fab Kills . | . . . . . . . . . . . . . . . . . . . . . . . . . . . . . . . Hacking | -11 -10 -10 -10 -9 -8 -7 -7 -7 -7 -6 -6 -6 -6 -6 -5 -5 -5 -5 -5 -5 -4 -4 -4 -4 -4 -4 -3 -3 -2 -1 --------- Run | Yrd Mat Min Exi Min Mat Fac Low Low Dat Pro Fac Low Low Zio Pro Fac Ext Cet Arc Hub Fac Was Fac Upp Upp War Pro Res Res Acc Machines Accessed 85 | . 2 . 2 1 8 6 . . 3 . 12 . . . . 10 4 1 . 6 4 . 7 . 1 3 . 8 1 6 Terminals 43 | . 1 . . . 4 3 . . . . 6 . . . . 7 4 1 . 5 3 . 3 . . . . 1 1 4 Fabricators 4 | . . . . . . 2 . . . . 2 . . . . . . . . . . . . . . . . . . . Repair Stations 3 | . . . . . 1 . . . . . 1 . . . . . . . . . 1 . . . . . . . . . Recycling Units 8 | . 1 . . . 2 . . . . . 2 . . . . 1 . . . . . . 1 . . . . 1 . . Scanalyzers 9 | . . . . . 1 . . . . . 1 . . . . 2 . . . . . . 1 . . . . 3 . 1 Garrison Access 8 | . . . . . . 1 . . . . . . . . . . . . . 1 . . 2 . . . . 3 . 1 Total Hacks 235 | . 7 . 2 1 20 16 . . 26 . 20 . . . . 22 8 3 . 13 13 . 31 . 1 10 . 27 6 9 Successful 120 | . 1 . 2 1 12 6 . . 26 . 7 . . . . 9 4 1 . 5 7 . 23 . 1 10 . 4 . 1 Failed 112 | . 6 . . . 8 10 . . . . 12 . . . . 13 4 2 . 8 6 . 7 . . . . 22 6 8 Catastrophic 21 | . 1 . . . . . . . . . 5 . . . . 1 1 1 . 1 1 . . . . . . 5 2 3 Database Lockouts 3 | . . . . . . . . . . . 1 . . . . . . . . . . . 1 . . . . 1 . . Manual 86 | . 4 . 1 . 8 7 . . . . 1 . . . . 7 6 1 . 7 11 . 20 . . 1 . 6 1 5 Terminals 125 | . 4 . . . 10 11 . . . . 11 . . . . 16 8 3 . 11 11 . 22 . . . . 6 6 6 Fabricators 6 | . . . . . . 4 . . . . 2 . . . . . . . . . . . . . . . . . . . Repair Stations 10 | . . . . . 6 . . . . . 2 . . . . . . . . . 2 . . . . . . . . . Recycling Units 19 | . 3 . . . 3 . . . . . 3 . . . . 1 . . . . . . 2 . . . . 7 . . Scanalyzers 25 | . . . . . 1 . . . . . 2 . . . . 5 . . . . . . 5 . . . . 10 . 2 Garrison Access 10 | . . . . . . 1 . . . . . . . . . . . . . 2 . . 2 . . . . 4 . 1 Terminal Hacks 72 | . . . 2 1 1 2 . . 26 . 4 . . . . 2 2 1 . 3 3 . 13 . 1 10 . 1 . . Record 7 | . . . 1 . . . . . 6 . . . . . . . . . . . . . . . . . . . . . Part Schematic 12 | . . . . . . . . . 12 . . . . . . . . . . . . . . . . . . . . . Robot Schematic 5 | . . . . . . . . . 5 . . . . . . . . . . . . . . . . . . . . . Robot Analysis 7 | . . . . . . 1 . . . . . . . . . . . . . . . . 6 . . . . . . . Prototype ID Bank 15 | . . . . . . . . . 3 . 1 . . . . . 1 . . . . . 1 . . 9 . . . . Open Door 4 | . . . . 1 . . . . . . . . . . . . . 1 . . . . . . 1 1 . . . . Level Access Points 2 | . . . . . . . . . . . . . . . . . . . . 1 . . . . . . . 1 . . Branch Access Points 4 | . . . . . . 1 . . . . . . . . . 1 . . . . 1 . 1 . . . . . . . Terminal Index 2 | . . . . . . . . . . . . . . . . . . . . . . . 2 . . . . . . . Alert Level 3 | . . . . . . . . . . . 2 . . . . . . . . 1 . . . . . . . . . . Unreport Threat 1 | . . . . . . . . . . . . . . . . . 1 . . . . . . . . . . . . . Locate Traps 2 | . . . . . . . . . . . 1 . . . . . . . . . . . 1 . . . . . . . Extermination Status 1 | . . . . . . . . . . . . . . . . . . . . . . . 1 . . . . . . . Recall Extermination 1 | . . . . . . . . . . . . . . . . . . . . . 1 . . . . . . . . . Hauler Manifests 1 | . . . . . 1 . . . . . . . . . . . . . . . . . . . . . . . . . Registered Components 4 | . . . . . . . . . . . . . . . . 1 . . . 1 1 . 1 . . . . . . . Proto ID Catalog 1 | . . . 1 . . . . . . . . . . . . . . . . . . . . . . . . . . . Fabricator Hacks 2 | . . . . . . 1 . . . . 1 . . . . . . . . . . . . . . . . . . . Network Status 2 | . . . . . . 1 . . . . 1 . . . . . . . . . . . . . . . . . . . Repair Station Hacks 7 | . . . . . 5 . . . . . . . . . . . . . . . 2 . . . . . . . . . Scan Component 4 | . . . . . 3 . . . . . . . . . . . . . . . 1 . . . . . . . . . Repair 3 | . . . . . 2 . . . . . . . . . . . . . . . 1 . . . . . . . . . Recycling Unit Hacks 3 | . . . . . 2 . . . . . . . . . . . . . . . . . 1 . . . . . . . Retrieve Components 3 | . . . . . 2 . . . . . . . . . . . . . . . . . 1 . . . . . . . Scanalyzer 10 | . . . . . 1 . . . . . 1 . . . . 4 . . . . . . 3 . . . . 1 . . Insert Component 2 | . . . . . . . . . . . . . . . . . . . . . . . 2 . . . . . . . Analyze 1 | . . . . . . . . . . . . . . . . . . . . . . . 1 . . . . . . . Retrieve Study 7 | . . . . . 1 . . . . . 1 . . . . 4 . . . . . . . . . . . 1 . . Garrison Access Hacks 5 | . . . . . . 1 . . . . . . . . . . . . . . . . 2 . . . . 1 . 1 Seal Access 5 | . . . . . . 1 . . . . . . . . . . . . . . . . 2 . . . . 1 . 1 Unauthorized Hacks 21 | . 1 . . . 3 2 . . . . 1 . . . . 3 2 . . 2 2 . 4 . . . . 1 . . Terminals 21 | . 1 . . . 3 2 . . . . 1 . . . . 3 2 . . 2 2 . 4 . . . . 1 . . Assimilate 5 | . . . . . 1 . . . . . 1 . . . . 1 . . . . 1 . 1 . . . . . . . Botnet 12 | . . . . . 2 2 . . . . . . . . . 2 1 . . 1 1 . 2 . . . . 1 . . Operators 3 | . 1 . . . . . . . . . . . . . . . 1 . . . . . 1 . . . . . . . Sabotage 1 | . . . . . . . . . . . . . . . . . . . . 1 . . . . . . . . . . Fabricators . | . . . . . . . . . . . . . . . . . . . . . . . . . . . . . . . Repair Stations . | . . . . . . . . . . . . . . . . . . . . . . . . . . . . . . . Recycling Units . | . . . . . . . . . . . . . . . . . . . . . . . . . . . . . . . Scanalyzers . | . . . . . . . . . . . . . . . . . . . . . . . . . . . . . . . Garrison Access . | . . . . . . . . . . . . . . . . . . . . . . . . . . . . . . . Data Cores Recovered 1 | . . . . . . . . . . . 1 . . . . . . . . . . . . . . . . . . . Used . | . . . . . . . . . . . . . . . . . . . . . . . . . . . . . . . Hacking Detections 57 | . 2 . . . 7 5 . . . . 8 . . . . 8 3 2 . 5 2 . 3 . . . . 6 1 5 Full Trace Events 4 | . 1 . . . . . . . . . 1 . . . . . . . . . . . . . . . . 1 1 . Feedback Events . | . . . . . . . . . . . . . . . . . . . . . . . . . . . . . . . Feedback Blocked . | . . . . . . . . . . . . . . . . . . . . . . . . . . . . . . . Robot Schematics Acquired 8 | . . . . . . . . . 5 . . . . 3 . . . . . . . . . . . . . . . . Robots Built . | . . . . . . . . . . . . . . . . . . . . . . . . . . . . . . . Authchips . | . . . . . . . . . . . . . . . . . . . . . . . . . . . . . . . Time . | . . . . . . . . . . . . . . . . . . . . . . . . . . . . . . . Total Robot Build Rating . | . . . . . . . . . . . . . . . . . . . . . . . . . . . . . . . Part Schematics Acquired 27 | . . . . . . . . . 12 . . . . 14 . . . . . . . . 1 . . . . . . . Parts Built . | . . . . . . . . . . . . . . . . . . . . . . . . . . . . . . . Authchips . | . . . . . . . . . . . . . . . . . . . . . . . . . . . . . . . Time . | . . . . . . . . . . . . . . . . . . . . . . . . . . . . . . . Total Part Build Rating . | . . . . . . . . . . . . . . . . . . . . . . . . . . . . . . . Part Studies Acquired 7 | . . . . . 1 . . . . . 1 . . . . 4 . . . . . . . . . . . 1 . . Parts Repaired 3 | . . . . . 2 . . . . . . . . . . . . . . . 1 . . . . . . . . . Time 104 | . . . . . 82 . . . . . . . . . . . . . . . 22 . . . . . . . . . Parts Recycled . | . . . . . . . . . . . . . . . . . . . . . . . . . . . . . . . Recycled Matter . | . . . . . . . . . . . . . . . . . . . . . . . . . . . . . . . Retrieved Matter . | . . . . . . . . . . . . . . . . . . . . . . . . . . . . . . . Retrieved Components 20 | . . . . . 11 . . . . . . . . . . . . . . . . . 9 . . . . . . . Parts Scanalyzed 1 | . . . . . . . . . . . . . . . . . . . . . . . 1 . . . . . . . Part Schematics Acquired 1 | . . . . . . . . . . . . . . . . . . . . . . . 1 . . . . . . . Parts Damaged 1 | . . . . . . . . . . . . . . . . . . . . . . . 1 . . . . . . . Bothacking | -11 -10 -10 -10 -9 -8 -7 -7 -7 -7 -6 -6 -6 -6 -6 -5 -5 -5 -5 -5 -5 -4 -4 -4 -4 -4 -4 -3 -3 -2 -1 ------------ Run | Yrd Mat Min Exi Min Mat Fac Low Low Dat Pro Fac Low Low Zio Pro Fac Ext Cet Arc Hub Fac Was Fac Upp Upp War Pro Res Res Acc Used RIF Installer . | . . . . . . . . . . . . . . . . . . . . . . . . . . . . . . . Robots Hacked . | . . . . . . . . . . . . . . . . . . . . . . . . . . . . . . . Non-combat . | . . . . . . . . . . . . . . . . . . . . . . . . . . . . . . . Combat . | . . . . . . . . . . . . . . . . . . . . . . . . . . . . . . . Robot Hacks Applied . | . . . . . . . . . . . . . . . . . . . . . . . . . . . . . . . Relay Couplers Released 3 | . . . . . . . . . . . 1 . . . . . . . . . . . . . . . . . 2 . Machine Destruction 3 | . . . . . . . . . . . 1 . . . . . . . . . . . . . . . . . 2 . Fabnet Peak Effective % . | . . . . . . . . . . . . . . . . . . . . . . . . . . . . . . . Robots Rewired 16 | . . . . . . . . . . . . . . . . . 6 . . . . . . 4 1 5 . . . . Allies Hacked . | . . . . . . . . . . . . . . . . . . . . . . . . . . . . . . . Hacks Repelled . | . . . . . . . . . . . . . . . . . . . . . . . . . . . . . . . Allies | -11 -10 -10 -10 -9 -8 -7 -7 -7 -7 -6 -6 -6 -6 -6 -5 -5 -5 -5 -5 -5 -4 -4 -4 -4 -4 -4 -3 -3 -2 -1 -------- Run | Yrd Mat Min Exi Min Mat Fac Low Low Dat Pro Fac Low Low Zio Pro Fac Ext Cet Arc Hub Fac Was Fac Upp Upp War Pro Res Res Acc Total Allies 54 | . . 3 . 2 1 . . . . 2 . . . . . 1 29 5 . . . . 1 4 1 5 . . . . Largest Group 20 | . . 3 . 2 2 . . . . 1 . . . . . 1 20 20 13 3 . . 1 4 1 5 1 . . . Highest-Rated Group 843 | . . 40 . 36 36 . . . . 96 . . . . . 26 696 843 825 220 . . 10 189 48 286 64 . . . Highest-Rated Ally 159 | . . 16 . 31 31 . . . . 96 . . . . . 26 159 159 156 96 . . 10 48 48 64 64 . . . Total Orders 26 | . . . . . . . . . . 1 . . . . . . . 4 . 1 . . . . . 19 1 . . . STAY 12 | . . . . . . . . . . . . . . . . . . 3 . 1 . . . . . 7 1 . . . ROAM 1 | . . . . . . . . . . 1 . . . . . . . . . . . . . . . . . . . . FOLLOW 7 | . . . . . . . . . . . . . . . . . . 1 . . . . . . . 6 . . . . AID 6 | . . . . . . . . . . . . . . . . . . . . . . . . . . 6 . . . . Ally Attacks 374 | . . 6 . . 31 . . . . 17 . . . . . . 144 79 11 50 . . . . . 36 . . . . Total Damage 8852 | . . 60 . . 338 . . . . 401 . . . . . . 2468 1857 148 1961 . . . . . 1619 . . . . Kills 50 | . . . . . 1 . . . . 1 . . . . . . 18 10 1 13 . . . . . 6 . . . . Allies Corrupted 3 | . . . . . . . . . . . . . . . . . 2 . . 1 . . . . . . . . . . Allies Melted . | . . . . . . . . . . . . . . . . . . . . . . . . . . . . . . . Intel | -11 -10 -10 -10 -9 -8 -7 -7 -7 -7 -6 -6 -6 -6 -6 -5 -5 -5 -5 -5 -5 -4 -4 -4 -4 -4 -4 -3 -3 -2 -1 ------- Run | Yrd Mat Min Exi Min Mat Fac Low Low Dat Pro Fac Low Low Zio Pro Fac Ext Cet Arc Hub Fac Was Fac Upp Upp War Pro Res Res Acc Active Infowar (turns) 22371 | . . . . 129 2395 1169 773 523 89 1095 1698 230 650 1150 458 1250 552 . . 618 682 142 966 216 682 651 645 1598 909 3101 Sensors 2381 | . . . . . . . . . . . . . . . . . . . . . . 142 52 216 674 650 645 2 . . IFF 489 | . . . . . . . . . . . . . . 1 431 43 . . . . 14 . . . . . . . . . Terrain 1046 | . . . . . . . . . . . . . . . . . . . . . . . . . 3 . . . . 1043 Structural 10766 | . . . . 129 2342 684 451 71 . 370 . . . . . . . . . 618 680 73 893 . . . . 1598 351 2506 T.N.C. 8914 | . . . . . 846 1098 773 523 89 1095 1698 230 650 1150 458 304 . . . . . . . . . . . . . . Cloaking 5428 | . . . . . . . . . . . . . . . . . . . . . . . . . . 1 . 1547 909 2971 Jamming 4875 | . . . . . . . . . . . 1079 . . . . 1205 552 . . . . . 21 . 5 . . . 16 1997 Robot Analysis Total 7 | . . . . . . 1 . . . . . . . . . . . . . . . . 6 . . . . . . . Derelict Logs Recovered 11 | . . 1 . 1 . . . . . 2 . . 1 2 1 . . . . . . . . 1 2 . . . . . Drone Launches 6 | . . . . . . . . . . 6 . . . . . . . . . . . . . . . . . . . . Drone Recoveries 5 | . . . . . . . . . . 5 . . . . . . . . . . . . . . . . . . . . Exploration | -11 -10 -10 -10 -9 -8 -7 -7 -7 -7 -6 -6 -6 -6 -6 -5 -5 -5 -5 -5 -5 -4 -4 -4 -4 -4 -4 -3 -3 -2 -1 ------------- Run | Yrd Mat Min Exi Min Mat Fac Low Low Dat Pro Fac Low Low Zio Pro Fac Ext Cet Arc Hub Fac Was Fac Upp Upp War Pro Res Res Acc Turns Passed 26865 | 34 139 271 135 304 2397 1169 773 523 89 1095 1698 230 650 1150 458 1388 1135 410 64 1195 717 142 1603 350 827 1357 701 1598 1068 3195 Spaces Moved 19362 | 52 264 518 267 396 1189 808 513 361 75 419 1163 220 448 998 342 938 784 230 40 739 535 82 1157 320 681 916 562 1303 885 2157 Core 1504 | 51 264 518 267 302 . . . . . 3 . . . . . . . . . . . . 1 . . . . . . 98 Treads 453 | 1 . . . . 452 . . . . . . . . . . . . . . . . . . . . . . . . . Legs 14864 | . . . . 94 737 808 513 361 75 416 1163 220 448 998 342 938 784 230 40 739 535 82 337 . . 240 562 1303 885 2014 Wheels 2496 | . . . . . . . . . . . . . . . . . . . . . . . 819 320 681 676 . . . . Hover . | . . . . . . . . . . . . . . . . . . . . . . . . . . . . . . . Flight 45 | . . . . . . . . . . . . . . . . . . . . . . . . . . . . . . 45 Fastest Speed 37 | 50 50 50 50 50 115 115 116 118 120 120 97 102 102 112 105 90 102 116 117 108 112 112 94 94 92 94 109 105 98 37 Average Speed 107 | 52 50 50 50 66 133 115 117 120 120 241 112 102 108 112 107 104 109 116 117 115 112 114 105 94 100 109 109 106 100 97 Slowest Speed 700 | 160 50 50 50 120 160 116 186 190 120 450 190 102 112 112 117 108 117 117 117 180 112 115 700 94 112 115 109 109 107 167 Overloaded Moves . | . . . . . . . . . . . . . . . . . . . . . . . . . . . . . . . Propulsion Burnouts . | . . . . . . . . . . . . . . . . . . . . . . . . . . . . . . . Robots Hopped 1 | . . . . . . . . . . . . . . . . . . . . . . . . . . . . . . 1 Potential Cave-ins 8 | . . . . . . . . . . . . . . . . . . . . . . 3 . . . 3 . . . 2 Cave-ins Triggered . | . . . . . . . . . . . . . . . . . . . . . . . . . . . . . . . Exploration Rate (%) 56 | 4 70 88 68 85 68 17 58 57 68 66 34 44 63 82 56 29 81 68 63 63 19 76 29 49 78 86 59 43 24 64 Regions Visited 30 Branch Regions 19 Pre-discovered Areas 4 | . . 1 1 . . . . . 1 . . . 1 . . . . . . . . . . . . . . . . . Known Exits Taken 11 | . . . . . . 1 1 . . . 1 . . . . 1 . . . 1 . . 1 1 1 1 1 1 . . Unknown Exits Taken 17 | 1 1 1 1 1 1 . . 1 1 1 . 1 1 1 1 . 1 1 1 . . . . . . . . . 1 . Scrap Searched 22 | . . . . 2 . . 4 2 . 2 . . 2 4 1 . . . . . . . . 1 2 . 2 . . . Spaces Dug 251 | . . . . . 23 15 . 1 . 1 32 . 3 . 3 30 . . . 4 13 5 31 6 2 4 4 19 4 51 Terrain Destroyed 251 | . . . . . 23 15 . 1 . 1 32 . 3 . 3 30 . . . 4 13 5 31 6 2 4 4 19 4 51 Melee 251 | . . . . . 23 15 . 1 . 1 32 . 3 . 3 30 . . . 4 13 5 31 6 2 4 4 19 4 51 Projectile . | . . . . . . . . . . . . . . . . . . . . . . . . . . . . . . . AOE . | . . . . . . . . . . . . . . . . . . . . . . . . . . . . . . . Terrain Rammed . | . . . . . . . . . . . . . . . . . . . . . . . . . . . . . . . Walls Destroyed . | . . . . . . . . . . . . . . . . . . . . . . . . . . . . . . . Machines Disabled . | . . . . . . . . . . . . . . . . . . . . . . . . . . . . . . . Actions | -11 -10 -10 -10 -9 -8 -7 -7 -7 -7 -6 -6 -6 -6 -6 -5 -5 -5 -5 -5 -5 -4 -4 -4 -4 -4 -4 -3 -3 -2 -1 --------- Run | Yrd Mat Min Exi Min Mat Fac Low Low Dat Pro Fac Low Low Zio Pro Fac Ext Cet Arc Hub Fac Was Fac Upp Upp War Pro Res Res Acc Total 23984 | 57 270 529 267 423 1895 990 609 412 74 477 1412 223 606 1033 418 1268 1029 366 57 995 628 124 1420 355 784 1252 632 1473 1014 2892 Wait 2693 | . . 9 . 8 540 94 24 14 . 20 121 . 150 9 56 207 142 101 18 165 32 34 109 7 45 221 56 74 25 412 Move 19330 | 51 263 517 266 395 1188 807 512 360 74 418 1162 219 447 997 341 937 783 229 39 738 535 81 1156 319 680 915 561 1302 884 2154 Hop 1 | . . . . . . . . . . . . . . . . . . . . . . . . . . . . . . 1 Pick Up 157 | 4 1 . 1 . 24 11 8 1 . 3 6 . 1 8 1 5 3 6 . 4 12 . 9 2 4 10 . 9 11 13 Fast Attach 123 | 2 . . . 4 7 3 3 4 . 3 13 . . 1 1 16 6 3 . 2 2 . 12 . 5 8 . 10 8 10 Attach 88 | . . 2 . 1 8 4 7 3 . 6 1 1 . . 1 4 5 2 . 1 4 . 7 1 1 3 . 4 3 19 Detach 23 | . . . . 2 . 2 . 1 . 2 . . . . . 3 4 2 . . . . 1 . . . . 2 3 1 Swap 228 | . . . . . 16 12 3 3 . 5 4 1 1 7 2 8 11 8 . 20 11 3 15 2 11 14 5 16 19 31 Drop 194 | . . . . 1 16 15 1 2 . 4 5 . . 10 . 11 8 8 . 10 8 1 12 2 4 22 . 19 21 14 Fire . | . . . . . . . . . . . . . . . . . . . . . . . . . . . . . . . Melee 1035 | . . . . 12 96 42 51 24 . 16 100 2 7 1 16 77 31 7 . 55 20 5 99 10 27 14 10 37 40 236 Ram 7 | . 6 1 . . . . . . . . . . . . . . . . . . . . . . . . . . . . Kick . | . . . . . . . . . . . . . . . . . . . . . . . . . . . . . . . Crush . | . . . . . . . . . . . . . . . . . . . . . . . . . . . . . . . Escape Stasis 5 | . . . . . . . . . . . . . . . . . . . . . 4 . . . . . . . . 1 Rewire 100 | . . . . . . . . . . . . . . . . . 36 . . . . . . 12 7 45 . . . . Trap . | . . . . . . . . . . . . . . . . . . . . . . . . . . . . . . . Miscellaneous . | . . . . . . . . . . . . . . . . . . . . . . . . . . . . . . . Route ------- -11/Scrapyard -10/Materials (discovered 2 exits: [*Mat] / [*Min]) -10/Mines (discovered 2 exits: [*Mat] / *Exi) -10/Exiles -9/Mines -8/Materials -7/Factory (discovered 2 exits: *Low x2) -7/Lower Caves -7/Lower Caves -7/Data Miner -6/Proximity Caves -6/Factory (discovered 2 exits: *Fac / *Low) -6/Lower Caves -6/Lower Caves (discovered 2 exits: *Fac / [*Zio]) -6/Zion -5/Proximity Caves -5/Factory (discovered 5 exits: *Fac / Upp x2 / *Ext x2) -5/Extension (discovered 2 exits: *Fac / *Cet) -5/Cetus (discovered 2 exits: *Fac / [*Arc]) -5/Archives -5/Hub_04(d) (discovered 4 exits: *Fac x4) -4/Factory (discovered 2 exits: *Upp x2) -4/Waste -4/Factory (discovered 3 exits: *Res / *Upp x2) -4/Upper Caves -4/Upper Caves (discovered 2 exits: *Res / *War) -4/Warlord -3/Proximity Caves -3/Research (discovered 5 exits: *Res x3 / *Tes x2) -2/Research (discovered 2 exits: *Acc / *Qua) -1/Access History --------- Turn | Location | Event 4 | -11/Scrapyard | Discovered new exit (range 15) 35 | -11/Scrapyard | Entered Materials 107 | -10/Materials | Discovered new exit (range 16) 154 | -10/Materials | Core integrity fell below 50% 169 | -10/Materials | Discovered new exit (range 11) 174 | -10/Materials | Entered Mines 180 | -10/Mines | Learned 4 Materials zone layouts 187 | -10/Mines | Assisted by bots powering up and referring to "LRC-V3" 211 | -10/Mines | Assembled infested the area 216 | -10/Mines | Assisted by a Guerilla fighting off Assembled 270 | -10/Mines | Lost 4 allies 295 | -10/Mines | Core integrity fell below 20% 313 | -10/Mines | Build established: Mutant 319 | -10/Mines | Discovered new exit (range 8) 431 | -10/Mines | Learned location of Storage (-9) 443 | -10/Mines | Deemed a non-threat by the Exiles lab entrance 443 | -10/Mines | Discovered new exit (range 5) 445 | -10/Mines | Entered Exiles 458 | -10/Exiles | Met 8R-AWN 465 | -10/Exiles | Met EX-HEX 485 | -10/Exiles | Met EX-DEC 493 | -10/Exiles | Learned location of Zion (-6) 506 | -10/Exiles | Met EX-BIN 512 | -10/Exiles | Aligned with FarCom system 512 | -10/Exiles | Given EX-Vault access code 524 | -10/Exiles | Opened EX-Vault 528 | -10/Exiles | Found Modified TNC 538 | -10/Exiles | Warned to stay clear of 0b10 Research branches 574 | -10/Exiles | Discovered new exit (range 14) 580 | -10/Exiles | Left Exiles lab with Modified TNC 580 | -10/Exiles | Entered Mines 587 | -9/Mines | Received a Rocket Launcher from a helpful Derelict 602 | -9/Mines | A weapon hastily lodged in a ceiling crevice suddenly fell to the ground 607 | -9/Mines | Learned location of 1 exit from Lower Caves 615 | -9/Mines | Found a hidden stash of uninstalled traps 727 | -9/Mines | Found the Drone Emporium 728 | -9/Mines | Found Prototype Device 728 | -9/Mines | Identified Splice Drone Bay 843 | -9/Mines | Discovered new exit (range 8) 884 | -9/Mines | Entered Materials 884 | -8/Materials | Accompanied by 2 allies 884 | -8/Materials | Evolved 4 slots: Propulsion x2, Utility x2 889 | -8/Materials | Led the pair of lost Derelicts to an unsafe place 1270 | -8/Materials | Build established: Scavenger-Assassin 1510 | -8/Materials | Garrison activated, responded to threat 2255 | -8/Materials | Build established: Gladiator 2842 | -8/Materials | Discovered new exit (range 10) 2971 | -8/Materials | Repaired Titanium Leg+ 3017 | -8/Materials | Repaired Mak. Axe 3281 | -8/Materials | Entered Factory 3281 | -7/Factory | Evolved 2 slots: Power x1, Utility x1 3526 | -7/Factory | Discovered new exit (range 12) 3887 | -7/Factory | Identified exit to Lower Caves 4450 | -7/Factory | Entered Lower Caves 4451 | -7/Lower Caves | Identified exit to Lower Caves 4510 | -7/Lower Caves | Attracted the attention of an 0b10 outpost 4742 | -7/Lower Caves | Attracted the attention of an 0b10 checkpoint 5002 | -7/Lower Caves | Lost 4 parts (1p1n1u1w) 5223 | -7/Lower Caves | Entered another Lower Caves area 5348 | -7/Lower Caves | Lost 4 parts (2n1u1w) 5480 | -7/Lower Caves | Encountered a Warlord checkpoint 5623 | -7/Lower Caves | Entered a destroyed Warlord outpost 5669 | -7/Lower Caves | Build established: Scavenger-Gladiator 5737 | -7/Lower Caves | Discovered new exit (range 5) 5746 | -7/Lower Caves | Entered Data Miner 5746 | -7/Data Miner | Discovered new exit (range 6) 5769 | -7/Data Miner | Met Data Miner 5797 | -7/Data Miner | Learned location of Section 7 (-2) 5797 | -7/Data Miner | Acquired the access code to Warlord's prototype stash 5806 | -7/Data Miner | Received God Mode back door access code from Data Miner 5835 | -7/Data Miner | Entered Proximity Caves 5837 | -6/Proximity Caves | Attracted the attention of an 0b10 checkpoint 5837 | -6/Proximity Caves | Core integrity fell below 50% 5890 | -6/Proximity Caves | Lost 4 parts (3n1w) 5994 | -6/Proximity Caves | Learned Factory stockpile data 6151 | -6/Proximity Caves | Build established: Scavenger-Mutant 6234 | -6/Proximity Caves | Escorted by Enhanced Grunt 6280 | -6/Proximity Caves | Lost 3 parts (1p2u) 6521 | -6/Proximity Caves | Build established: Mutant 6647 | -6/Proximity Caves | Learned location of 1 exit from Factory 6744 | -6/Proximity Caves | Core integrity fell below 20% 6924 | -6/Proximity Caves | Discovered new exit (range 6) 6930 | -6/Proximity Caves | Entered Factory 6930 | -6/Factory | Evolved 2 slots: Propulsion x1, Utility x1 6931 | -6/Factory | Identified exit to Lower Caves 7065 | -6/Factory | Build established: Scavenger-Mutant 7638 | -6/Factory | Spotted B-75 Beast 7862 | -6/Factory | Lost 3 parts (2p1u) 7954 | -6/Factory | Central database locked down 8246 | -6/Factory | Discovered new exit (range 7) 8303 | -6/Factory | Build established: Gladiator 8628 | -6/Factory | Entered Lower Caves 8850 | -6/Lower Caves | Discovered new exit (range 8) 8858 | -6/Lower Caves | Entered another Lower Caves area 8860 | -6/Lower Caves | Attracted the attention of an 0b10 checkpoint 8862 | -6/Lower Caves | Encountered an infested base 9053 | -6/Lower Caves | Discovered new exit (range 13) 9106 | -6/Lower Caves | Entered a destroyed Warlord outpost 9189 | -6/Lower Caves | Encountered a Warlord checkpoint 9365 | -6/Lower Caves | Discovered new exit (range 14) 9508 | -6/Lower Caves | Entered Zion 9558 | -6/Zion | System corruption cleaned by Quarantine Array 9624 | -6/Zion | Discovered new exit (range 12) 10000 | -6/Zion | Acquired unknown access codes intercepted by a Zionite 10232 | -6/Zion | Learned Factory terminal intel 10658 | -6/Zion | Entered Proximity Caves 10703 | -5/Proximity Caves | Spotted B-75 Beast 10971 | -5/Proximity Caves | Learned 4 Factory zone layouts 11105 | -5/Proximity Caves | Discovered new exit (range 12) 11116 | -5/Proximity Caves | Entered Factory 11116 | -5/Factory | Evolved 2 slots: Utility x1, Weapon x1 11117 | -5/Factory | Identified exit to Extension 11119 | -5/Factory | Loaded intel: 28 terminal locations 11459 | -5/Factory | Build established: Derelict-Gladiator 11521 | -5/Factory | Lost 4 parts (1p1n2u) 11783 | -5/Factory | Build established: Gladiator 11803 | -5/Factory | Discovered new exit (range 3) 12155 | -5/Factory | Garrison activated, responded to threat 12466 | -5/Factory | Identified exit to Upper Caves 12504 | -5/Factory | Entered Extension 12537 | -5/Extension | Rescued a captive Derelict 12546 | -5/Extension | Rescued a captive Derelict 12547 | -5/Extension | Rescued a captive Derelict 12611 | -5/Extension | Rescued a captive Derelict 12622 | -5/Extension | Rescued a captive Derelict 12622 | -5/Extension | Rescued a captive Derelict 12659 | -5/Extension | Rescued a captive Derelict 12661 | -5/Extension | Rescued a captive Derelict 12674 | -5/Extension | Rescued a captive Derelict 12675 | -5/Extension | Rescued a captive Derelict 12684 | -5/Extension | Rescued a captive Derelict 12685 | -5/Extension | Rescued a captive Derelict 12691 | -5/Extension | Rescued a captive Derelict 12691 | -5/Extension | Rescued a captive Derelict 12704 | -5/Extension | Rescued a captive Derelict 12705 | -5/Extension | Rescued a captive Derelict 12712 | -5/Extension | Rescued a captive Derelict 12906 | -5/Extension | Build established: Scavenger-Gladiator 12983 | -5/Extension | Spotted B-75 Beast 13008 | -5/Extension | Spotted B-75 Beast 13012 | -5/Extension | Destroyed B-75 Beast 13024 | -5/Extension | Allies destroyed B-75 Beast 13089 | -5/Extension | Lost 5 allies 13131 | -5/Extension | Rescued a captive Derelict 13142 | -5/Extension | Rescued a captive Derelict 13289 | -5/Extension | Rescued A7 13433 | -5/Extension | Rescued a captive Derelict 13470 | -5/Extension | Rescued a captive Derelict 13471 | -5/Extension | Rescued a captive Derelict 13552 | -5/Extension | Discovered new exit (range 10) 13553 | -5/Extension | Discovered new exit (range 6) 13639 | -5/Extension | Entered Cetus 13639 | -5/Cetus | Accompanied by 20 allies (A7) 13644 | -5/Cetus | Acquired a Cetus Manufacturing Module code from A7 13663 | -5/Cetus | Spotted Cetus Guard 13663 | -5/Cetus | Spotted Cetus Guard 13669 | -5/Cetus | Spotted Cetus Guard 13670 | -5/Cetus | Spotted Cetus Guard 13677 | -5/Cetus | Allies destroyed Cetus Guard 13693 | -5/Cetus | Allies destroyed Cetus Guard 13698 | -5/Cetus | Allies destroyed Cetus Guard 13700 | -5/Cetus | Allies destroyed Cetus Guard 13723 | -5/Cetus | Lost 8 allies 13800 | -5/Cetus | Started Cetus Manufacturing Module 13809 | -5/Cetus | Escorted A7 to Cetus Mainframe 13825 | -5/Cetus | Manufactured an Enhanced Grunt 13850 | -5/Cetus | Manufactured an Enhanced Grunt 13872 | -5/Cetus | Discovered new exit (range 16) 13875 | -5/Cetus | Manufactured an Enhanced Grunt 13898 | -5/Cetus | Spotted Cetus Guard 13898 | -5/Cetus | Spotted Cetus Guard 13900 | -5/Cetus | Manufactured an Enhanced Grunt 13909 | -5/Cetus | Spotted Cetus Guard 13912 | -5/Cetus | Spotted Cetus Guard 13925 | -5/Cetus | Manufactured an Enhanced Grunt 13925 | -5/Cetus | Allies destroyed Cetus Guard 13929 | -5/Cetus | Allies destroyed Cetus Guard 13930 | -5/Cetus | Allies destroyed Cetus Guard 13939 | -5/Cetus | Discovered new exit (range 16) 13945 | -5/Cetus | Met Revision 17 13949 | -5/Cetus | Lost 4 allies 14049 | -5/Cetus | Entered Archives 14049 | -5/Archives | Accompanied by 13 allies (A7) 14054 | -5/Archives | Received a hacking code to weaken MAIN.C 14062 | -5/Archives | Met Zhirov 14068 | -5/Archives | Reinforcements dispatched to Archives 14075 | -5/Archives | Discovered new exit (range 15) 14113 | -5/Archives | Reinforcements dispatched to Archives 14113 | -5/Archives | Entered Hub_04(d) 14113 | -5/Hub_04(d) | Accompanied by 3 allies 14125 | -5/Hub_04(d) | Identified exit to Factory 14304 | -5/Hub_04(d) | System corruption reached 10% 14413 | -5/Hub_04(d) | First assault squad dispatched 14443 | -5/Hub_04(d) | Incoming assault squad redirected 14930 | -5/Hub_04(d) | Allied Derelicts emerged from ambush trap array 15086 | -5/Hub_04(d) | Lost 3 allies 15196 | -5/Hub_04(d) | Network Hub disabled 15258 | -5/Hub_04(d) | Network Hub disabled 15306 | -5/Hub_04(d) | System corruption reached 30% 15308 | -5/Hub_04(d) | Entered Factory 15308 | -4/Factory | Evolved 2 slots: Propulsion x1, Utility x1 15550 | -4/Factory | Repaired Microactuators 15637 | -4/Factory | Identified exit to Upper Caves 15667 | -4/Factory | Found Prototype Processor 15667 | -4/Factory | Identified Exp. Melee Analysis Suite 15670 | -4/Factory | Found Exp. Melee Analysis Suite 15673 | -4/Factory | Found Exp. Melee Analysis Suite 15677 | -4/Factory | Found Exp. Melee Analysis Suite 15679 | -4/Factory | Found Exp. Melee Analysis Suite 16025 | -4/Factory | Sucked down chute 16025 | -4/Factory | Entered Waste 16040 | -4/Waste | EMP discharged 16040 | -4/Waste | System corruption reached 10% 16050 | -4/Waste | Spotted C-40 Crusher 16069 | -4/Waste | Spotted C-40 Crusher 16100 | -4/Waste | Spotted C-40 Crusher 16121 | -4/Waste | Spotted C-40 Crusher 16122 | -4/Waste | Spotted C-40 Crusher 16123 | -4/Waste | Spotted C-40 Crusher 16140 | -4/Waste | EMP discharged 16149 | -4/Waste | Discovered new exit (range 16) 16167 | -4/Waste | Entered Factory 16261 | -4/Factory | Watched by a mysterious "MATRIX" hacker. 16472 | -4/Factory | Spotted B-86 Titan 16733 | -4/Factory | Lost 8 parts (1p6n1u) 17104 | -4/Factory | Central database locked down 17744 | -4/Factory | Discovered new exit (range 8) 17770 | -4/Factory | Entered Upper Caves 17812 | -4/Upper Caves | Build established: Hacker-Gladiator 17866 | -4/Upper Caves | Learned Research security intel 18009 | -4/Upper Caves | Attacked by a delusional Derelict stockpiling Unaware 18110 | -4/Upper Caves | Discovered new exit (range 13) 18119 | -4/Upper Caves | Identified exit to Upper Caves 18120 | -4/Upper Caves | Entered another Upper Caves area 18227 | -4/Upper Caves | Discovered new exit (range 11) 18567 | -4/Upper Caves | Learned Research emergency access door positions 18575 | -4/Upper Caves | Attracted the attention of an 0b10 outpost 18644 | -4/Upper Caves | Destroyed 8 combat bots 18774 | -4/Upper Caves | Found DCF Scrap (12 items) 18854 | -4/Upper Caves | Discovered new exit (range 14) 18860 | -4/Upper Caves | Encountered a Warlord checkpoint 18929 | -4/Upper Caves | Build established: Gladiator 18946 | -4/Upper Caves | Identified exit to Warlord 18947 | -4/Upper Caves | Entered Warlord 18986 | -4/Warlord | System corruption cleaned by Quarantine Array 19508 | -4/Warlord | Visited the Vortex Lab 19512 | -4/Warlord | Build established: Commander-Gladiator 19524 | -4/Warlord | Warlord's base attacked by MAIN.C 19579 | -4/Warlord | Met Warlord 19584 | -4/Warlord | Opened Warlord's prototype stash 19588 | -4/Warlord | Found Prototype Reactor 19593 | -4/Warlord | Found Prototype Device 19593 | -4/Warlord | Identified Exp. Cloaking Device 19598 | -4/Warlord | Found Prototype Device 19598 | -4/Warlord | Identified Thermal Barrier 19619 | -4/Warlord | Found Prototype Processor 19619 | -4/Warlord | Identified Exp. Target Analyzer 19673 | -4/Warlord | Spotted B-86 Titan 19874 | -4/Warlord | Warlord forces counterattacked 19983 | -4/Warlord | Spotted Executioner 19995 | -4/Warlord | Core integrity fell below 50% 20024 | -4/Warlord | Spotted Executioner 20066 | -4/Warlord | Lost 4 parts (2n1u1w) 20075 | -4/Warlord | Spotted Executioner 20085 | -4/Warlord | Lost 34 allies 20199 | -4/Warlord | Warlord base infiltrated, sounded retreat 20234 | -4/Warlord | Spotted Striker 20249 | -4/Warlord | Spotted Striker 20252 | -4/Warlord | Spotted Executioner 20282 | -4/Warlord | Discovered new exit (range 15) 20298 | -4/Warlord | Identified exit to Proximity Caves 20303 | -4/Warlord | Lost 4 allies 20304 | -4/Warlord | Entered Proximity Caves 20304 | -3/Proximity Caves | Accompanied by 1 ally 20325 | -3/Proximity Caves | Build established: Scavenger-Gladiator 20996 | -3/Proximity Caves | Discovered new exit (range 10) 21004 | -3/Proximity Caves | Identified exit to Research 21005 | -3/Proximity Caves | Entered Research 21005 | -3/Research | Evolved 2 slots: Utility x2 21006 | -3/Research | Identified exit to Testing 21172 | -3/Research | Discovered exit to Testing (range 6) 21187 | -3/Research | Identified exit to Research 21205 | -3/Research | Revision forces began assault on 0b10 21299 | -3/Research | Met up with Revision 17++ 21568 | -3/Research | Allied Derelicts emerged from ambush trap array 21705 | -3/Research | Research terminal network offline 22282 | -3/Research | Central database locked down 22309 | -3/Research | Spotted Striker 22310 | -3/Research | Spotted Striker 22314 | -3/Research | Destroyed Striker 22342 | -3/Research | Lost 3 allies 22603 | -3/Research | Entered another Research area 22603 | -2/Research | Warlord forces began assault on 0b10 22603 | -2/Research | Evolved 2 slots: Power x1, Weapon x1 22652 | -2/Research | Met up with Warlord 22695 | -2/Research | Discovered new exit (range 14) 22713 | -2/Research | Research machine network offline 22720 | -2/Research | Lost 3 allies 22875 | -2/Research | Discovered new exit (range 16) 22909 | -2/Research | Identified exit to Quarantine 22954 | -2/Research | Lost 4 allies 22969 | -2/Research | Spotted Striker 23023 | -2/Research | Build established: Gladiator 23038 | -2/Research | Found Exp. Melee Analysis Suite 23067 | -2/Research | Spotted Striker 23074 | -2/Research | Spotted Striker 23084 | -2/Research | Destroyed Striker 23092 | -2/Research | Spotted B-90 Cyclops 23100 | -2/Research | Met DD-05H 23137 | -2/Research | Lost 3 allies 23152 | -2/Research | Spotted Striker 23152 | -2/Research | Spotted Striker 23225 | -2/Research | Lost 4 allies 23242 | -2/Research | Spotted Striker 23257 | -2/Research | Destroyed Striker 23313 | -2/Research | Borebot progress halted 23343 | -2/Research | Lost 3 allies 23347 | -2/Research | Borebot progress halted 23419 | -2/Research | Found Exp. Melee Analysis Suite 23425 | -2/Research | Found Unknown Protection 23425 | -2/Research | Identified Hvy. Reflective Plating 23452 | -2/Research | Build established: Scavenger-Gladiator 23469 | -2/Research | Borebot progress halted 23489 | -2/Research | Lost 3 allies 23534 | -2/Research | Spotted Striker 23602 | -2/Research | Lost 7 allies 23671 | -2/Research | Entered Access 23671 | -1/Access | Evolved 2 slots: Utility x2 24599 | -1/Access | System corruption reached 10% 25171 | -1/Access | First assault squad dispatched 25189 | -1/Access | Incoming assault squad redirected 25488 | -1/Access | Lost 3 parts (1p1u1w) 25946 | -1/Access | Incoming assault squad redirected 26402 | -1/Access | High security lockdown imminent 26482 | -1/Access | High security lockdown engaged 26740 | -1/Access | System corruption reached 30% 26769 | -1/Access | Identified Vortex Chain Reactor 26807 | -1/Access | Released all parts (11) 26811 | -1/Access | Spotted Executioner 26811 | -1/Access | Spotted Executioner 26813 | -1/Access | Core integrity fell below 50% 26822 | -1/Access | Core integrity fell below 20% 26849 | -1/Access | Lost 17 parts (1p7n6u3w) 26866 | -1/Access | Destroyed by C-57 Dissector with Dual-blade Saw Last Messages --------------- 26818_ Slug penetrates Wall. 26818_ Penetrated by Slug. 26818_ Slug penetrates Wall. 26820_ P-80 Master resets Executioner, system corruption cleaned. 26821_ Slug penetrates Wall. 26827_ System corrupted: Component data lost. 26827_ Penetrated by Slug. 26828_ P-80 Master resets A-15 Conveyor, system corruption cleaned. 26832_ Slug penetrates A-15 Conveyor. 26832_ Slug penetrates Wall. 26837_ Acquired 77 matter. 26847_ System corrupted: Energy discharge (-38). 26854_ ALERT: Suspicious intruders detected, dispatching Cutter reinforcements to area. 26863_ System corrupted: Substantial component data lost. 26864_ R-10 Processor collects Unknown Energy Gun. Map ----- +----------------------------------------------------+ | ##????????????????# ## #????????????????? | | # ??? ############ ## #????????????????? | | # ?????############ ## #????????????????? | | + ? ???# ] ## #????????????????? | | # ?????# ## #????????????????? | | # ?????# + #????????????????? | | # # " ## #????????????????? | | ######### """ ## #????????????????? | | # """ ##! #????????????????? | | = # " ## #??? ????????????? | | * + ## #????????????????? | | # ##] p #????????????????? | | # ## ] #????????????????? | | ######### ############ #????????????????? | | #########+############# #????????????????? | | ??## ##????# ##???????????????? | | #?## ##????######+####????????????????? | | #### """"" #####?#????# #?????#?????????????? | | # """T"" # !?????# #???????????????????? | | # "" # ?????# #???????????????????? | | # # ?#### #??? ???????????????? | | # # !! ?# +???????????????????? | | # = # ! # ####?? ????????????????? | | # ! =# ! # #????? ????????????????? | | # # /c#?#??#######?#?????????? | | # = ]* # #@#???? #?? ????????? | | # ] [!=######### ### #???????????? | | #+#########%####?#?# #? #???????????? | | # ###############??# # " #????? ?????? | | ####?#?######### ###### ^ #c """ #???g???????? | | ?????#?##########"#####^ ^ cc """#???????????? | | ???????## """ / * # " #???????????? | | ?????? # ""T"" %##### A# ! #?? ????????? | | ? ?? ? # "" "" =##### # # ??#??? | | ?? # ##?## #####+#####+####?????? | | ? + ##?## ### ?????? | | # ##### ### ??????? | | # ?? # ] = ##?## ### ???? ????? | | #? ? # = ##?## ### ?????????? | | #?#?#??##+######"###### ### ? ???????? | | #??#???## ######"###### ### ##?#?????????? | | #????#?## # # ### ####?????????? | | ######### # = [#| ### ##????????? ?? | | ######### # ==#!! [####?????? ?? | | # !!+%[ =*%####??? ?? ?? | | # !%# [!%####???? ????? | | # !# "" !*=""##?????????? | | ############# "T""=%=""##?? ?????? | | "" " =[""##?????????? | | = T##??#??????? | +----------------------------------------------------+ Best States ------------- Heat Dissipation 52 Energy Generation 67 Energy Capacity 850 Matter Stores 300 Matter Capacity 300 Sight Range 16 Robot Scan Range 18 Terrain Scan Range 24 Terrain Scan Density 10 Jamming Range 16 Cloak Strength 4 Armor Coverage 600 Resistance: KI 20 Resistance: TH 50 Utility Shielding 66 Weapon Shielding 66 Melee Speed Boost 40 Phase Shifting 10 Evasion (%) 70 Melee Accuracy 36 Target Analysis 10 Recoil Reduction 4 Force Boost 30 Offensive Hacking 26 Item Schematics ----------------- Combat Drone Bay | -7/Data Miner | Free Lgt. Regenerative Plating | -7/Data Miner | Free Cld. Cesium-ion Thruster | -7/Data Miner | Free Gravity Neutralizer | -7/Data Miner | Free Imp. Heavy Machine Gun | -7/Data Miner | Free Thunder Leg | -7/Data Miner | Free Adv. Cooling System | -7/Data Miner | Free KE Penetrator | -7/Data Miner | Free Hyp. Coil Gun | -7/Data Miner | Free Triangulator | -7/Data Miner | Free Impulse Thruster | -7/Data Miner | Free Adv. Recoil Stabilizer | -7/Data Miner | Free Magnetic Acceleration Cannon | -6/Zion | Archive Variable Charge Gun | -6/Zion | Archive Imp. Hacking Suite | -6/Zion | Archive Hyp. Gauss Cannon | -6/Zion | Archive IFF Parser | -6/Zion | Archive Imp. Corruption Screen | -6/Zion | Archive Imp. Reaction Control System | -6/Zion | Archive Centrium Wheel | -6/Zion | Archive HERF Cannon | -6/Zion | Archive Hpw. Shock Rifle | -6/Zion | Archive Tiamat Missile Launcher | -6/Zion | Archive Adv. Terrain Scanner | -6/Zion | Archive Angular Momentum Engine | -6/Zion | Archive Adv. Trap Extractor | -6/Zion | Archive Myomer Leg | -4/Factory | Scanalyzed Robot Schematics ------------------ G-47 Trooper | -7/Data Miner | Free Y-54 Guardian | -7/Data Miner | Free O-24 Administrator | -7/Data Miner | Free B-48 Gladiator | -7/Data Miner | Free X-67 Chaingunner | -7/Data Miner | Free W-25 Informer | -6/Zion | Archive K-01 Serf | -6/Zion | Archive G-50 Soldier | -6/Zion | Archive Fabricated ------------ Nothing Repaired ---------- Titanium Leg | 28% | -8/Materials Mak. Axe | 72% | -8/Materials Microactuators | 12% | -4/Factory Studied --------- Titanium Leg | -8/Materials | Hacked Spear | -6/Factory | Hacked Lance | -5/Factory | Hacked Flexi-carbon Leg | -5/Factory | Hacked Angular Momentum Engine | -5/Factory | Hacked Arm. Leg | -5/Factory | Hacked Biometal Leg | -3/Research | Hacked Alien Tech Used ----------------- None Achievements -------------- Assassin Gladiator Challenges ------------ None Game ------ Seed FlightTitaniumProcsplitter Manual? 0 Play Time 04:33:40 Cumulative 668.1 hours Start 2026.03.27 @ 17:33:19 End 2026.03.28 @ 13:35:28 Sessions 3 Manual Loads 0 Difficulty Rogue Special Mode None Game No. 366 Rogue 366 Adventurer 0 Explorer 0 Win Type - Total 28 Types 14/1/6/2/1/0/1/2/1/0 Lore% 92 Gallery% 85 Achievement% 77 Wizard Run 0 Options --------- Layout 1 ASCII 0 Keyboard 0 Movement Numpad Keybinds 0 Fullscreen 2 Font 24/Smallcaps Map View 50x40 Zoom Use 0% Tactical HUD 1 Map Filters NONE Filters NONE Steam 1 RUN: 798476f6-20d4-43e4-b586-ed6ce65451d5